bitfinex-derivatives/quotes_BTCF0:USTF0_20240820
["timestamp","ask_amount","ask_price","bid_price","bid_amount"]
[1724127280204,0.3608,60967.0,60958.0,0.36104616]
[1724127280502,0.3608,60967.0,60965.0,0.081969]
[1724127280903,0.001,60966.0,60965.0,0.081969]
[1724127281107,0.001,60966.0,60958.0,0.36104616]
[1724127281607,3.77,60965.0,60958.0,0.36104616]
[1724127282106,0.081977,60959.0,60958.0,0.00024616]
[1724127282401,0.08203122,60959.0,60958.0,0.00024616]
[1724127283211,5.422e-05,60959.0,60958.0,0.08222516]
[1724127283398,0.001,60966.0,60965.0,0.081969]
[1724127284015,0.3608,60967.0,60966.0,0.081968]
[1724127286799,0.06514897,60978.0,60958.0,0.08222416]
[1724127287097,1.6e-07,60970.0,60969.0,0.517928]
[1724127287302,0.081931,60994.0,60969.0,0.517928]
[1724127287303,0.081931,60994.0,60987.0,0.081939]
[1724127287506,0.092831,60994.0,60987.0,0.081939]
[1724127289715,0.081932,60993.0,60987.0,0.081939]
[1724127289905,0.241932,60993.0,60987.0,0.081939]
[1724127290308,0.081933,60992.0,60990.0,0.3608]
[1724127290518,0.081933,60992.0,60984.0,0.00024595]
[1724127290519,0.081939,60988.0,60984.0,0.00024595]
[1724127290707,0.1167,60987.0,60984.0,0.00024595]
[1724127291007,0.74862,60987.0,60984.0,0.00024595]
[1724127291213,4.26192,60986.0,60984.0,0.00024595]
[1724127291412,4.42192,60986.0,60984.0,0.00024595]
[1724127291605,0.49192,60985.0,60984.0,0.00024595]
[1724127291812,0.64192,60985.0,60984.0,0.00024595]
[1724127292011,1.04192,60985.0,60984.0,0.00024595]
[1724127292206,0.49192,60984.0,60983.0,0.3502069]
[1724127292412,0.75852,60984.0,60983.0,0.3502069]
[1724127292612,1.15852,60984.0,60983.0,0.3502069]
[1724127293311,1.32210716,60984.0,60983.0,0.3502069]
[1724127293514,1.51932,60984.0,60977.0,0.00024595]
[1724127293814,0.16349889,60980.0,60977.0,0.00024595]
[1724127294010,0.31349889,60980.0,60977.0,0.00024595]
[1724127294410,0.08154889,60979.0,60977.0,0.00024595]
[1724127294714,0.16,60979.0,60977.0,0.00024595]
[1724127295016,0.08154889,60981.0,60977.0,0.00024595]
[1724127295214,0.08154889,60982.0,60977.0,0.00024595]
[1724127295511,0.4774,60984.0,60977.0,0.00024595]
[1724127295512,0.08154889,60978.0,60977.0,0.00024595]
[1724127295718,0.08154889,60979.0,60977.0,0.00024595]
[1724127295916,0.08154889,60979.0,60977.0,0.08219895]
[1724127296413,0.08154889,60981.0,60979.0,0.081949]
[1724127296908,0.08154889,60981.0,60980.0,0.081949]
[1724127297415,0.08154889,60982.0,60981.0,0.081948]
[1724127298820,0.08154889,60982.0,60978.0,0.3608]
[1724127298821,0.08195,60980.0,60978.0,0.3608]
[1724127299004,0.081952,60978.0,60977.0,0.00024595]
[1724127300415,0.694704,60978.0,60977.0,0.00024595]
[1724127300612,0.694704,60978.0,60962.0,0.3229]
[1724127300613,0.081967,60967.0,60965.0,0.3608]
[1724127300809,0.06535884,60969.0,60965.0,0.3608]
[1724127301012,3.77,60968.0,60965.0,0.3608]
[1724127301213,3.77,60968.0,60966.0,0.082268]
[1724127301911,3.851965,60968.0,60966.0,0.0003]
[1724127302107,0.081967,60967.0,60966.0,0.0003]
[1724127302924,0.082967,60967.0,60966.0,0.0003]
[1724127304318,0.081967,60967.0,60966.0,0.0003]
[1724127304617,0.082967,60967.0,60966.0,0.0003]
[1724127306319,0.082967,60967.0,60966.0,0.082268]
[1724127306621,0.001,60967.0,60966.0,0.082268]
[1724127307820,0.001,60967.0,60966.0,0.0003]
[1724127308019,0.082967,60967.0,60966.0,0.0003]
[1724127308223,3.852967,60967.0,60966.0,0.0003]
[1724127308609,3.91832584,60967.0,60966.0,0.0003]
[1724127309025,3.852967,60967.0,60966.0,0.0003]
[1724127309825,3.91833349,60967.0,60966.0,0.0003]
[1724127310118,3.852967,60967.0,60966.0,0.0003]
[1724127310310,4.012967,60967.0,60966.0,0.0003]
[1724127310826,4.07833145,60967.0,60966.0,0.0003]
[1724127311613,4.905047,60967.0,60966.0,0.0003]
[1724127312614,4.012967,60967.0,60966.0,0.0003]
[1724127313025,4.505047,60967.0,60966.0,0.0003]
[1724127313525,4.0946507,60967.0,60966.0,0.0003]
[1724127314024,4.012967,60967.0,60966.0,0.0003]
[1724127314417,4.0946507,60967.0,60966.0,0.0003]
[1724127314620,5.0686977,60967.0,60966.0,0.0003]
[1724127314822,4.987014,60967.0,60966.0,0.0003]
[1724127315516,4.587014,60967.0,60966.0,0.0003]
[1724127315917,4.505047,60967.0,60966.0,0.0003]
[1724127316224,4.58668876,60967.0,60966.0,0.0003]
[1724127316817,4.09459005,60967.0,60966.0,0.0003]
[1724127317121,4.905047,60967.0,60966.0,0.0003]
[1724127317511,4.987014,60967.0,60966.0,0.0003]
[1724127317711,4.905047,60967.0,60966.0,0.0003]
[1724127319223,4.987014,60967.0,60966.0,0.0003]
[1724127319419,0.081973,60962.0,60961.0,0.00024595]
[1724127319616,0.602773,60962.0,60961.0,0.00024595]
[1724127320827,0.603773,60962.0,60961.0,0.00024595]
[1724127322424,0.68539745,60962.0,60961.0,0.00024595]
[1724127324219,0.242973,60962.0,60961.0,0.00024595]
[1724127324421,0.32459745,60962.0,60961.0,0.00024595]
[1724127324620,0.242973,60962.0,60961.0,0.00024595]
[1724127325217,0.32460218,60962.0,60961.0,0.00024595]
[1724127325425,0.242973,60962.0,60961.0,0.00024595]
[1724127325629,0.3236087,60962.0,60961.0,0.00024595]
[1724127325929,0.3246087,60962.0,60961.0,0.00024595]
[1724127326521,0.241973,60962.0,60961.0,0.00024595]
[1724127326720,0.242973,60962.0,60961.0,0.00024595]
[1724127327229,0.32462169,60962.0,60961.0,0.00024595]
[1724127327428,0.242973,60962.0,60961.0,0.00024595]
[1724127329117,1.217066,60962.0,60961.0,0.00024595]
[1724127329528,1.4784173,60962.0,60961.0,0.00024595]
[1724127330328,1.4774173,60962.0,60961.0,0.00024595]
[1724127330534,1.363773,60962.0,60961.0,0.00024595]
[1724127330728,4.241653,60962.0,60961.0,0.00024595]
[1724127330928,4.243653,60962.0,60961.0,0.00024595]
[1724127331133,4.243653,60962.0,60961.0,9.5e-07]
[1724127331134,5.299719,60962.0,60961.0,9.5e-07]
[1724127331632,5.33139278,60962.0,60961.0,9.5e-07]
[1724127332232,5.32939278,60962.0,60961.0,9.5e-07]
[1724127332635,5.33339278,60962.0,60961.0,9.5e-07]
[1724127332933,0.082004,60939.0,60938.0,0.3608]
[1724127333143,0.082011,60934.0,60933.0,0.3608]
[1724127333532,3.852011,60934.0,60933.0,0.3608]
[1724127335434,3.853011,60934.0,60933.0,0.3608]
[1724127336027,3.852711,60934.0,60933.0,0.3608]
[1724127338234,3.852711,60934.0,60927.0,0.00024615]
[1724127338235,0.082019,60929.0,60927.0,0.00024615]
[1724127339434,0.083019,60929.0,60927.0,0.00024615]
[1724127341242,0.001,60929.0,60928.0,0.3608]
[1724127341443,0.00024615,60940.0,60935.0,0.08201]
[1724127341646,0.00024615,60940.0,60928.0,0.8532]
[1724127341647,0.06527762,60953.0,60939.0,1.087104]
[1724127341849,0.29503762,60959.0,60952.0,0.3608]
[1724127342148,0.46503762,60959.0,60952.0,0.081986]
[1724127342333,3.77,60958.0,60952.0,0.081986]
[1724127342540,3.77,60958.0,60953.0,0.3608]
[1724127342541,3.94,60958.0,60953.0,0.3608]
[1724127342734,3.94,60958.0,60949.0,0.00024615]
[1724127343251,4.00527762,60958.0,60949.0,0.00024615]
[1724127343450,0.06527762,60957.0,60949.0,0.00024615]
[1724127343744,3.83611762,60958.0,60953.0,0.3608]
[1724127343937,3.77,60958.0,60953.0,0.3608]
[1724127344644,0.23076,60959.0,60953.0,0.3608]
[1724127345049,0.22976,60959.0,60953.0,0.3608]
[1724127345239,0.001,60958.0,60953.0,0.3608]
[1724127346133,0.23076,60959.0,60955.0,0.081983]
[1724127347043,0.23076,60959.0,60953.0,0.3608]
[1724127348039,0.22976,60959.0,60953.0,0.3608]
[1724127348239,0.001,60958.0,60953.0,0.3608]
[1724127348947,0.312739,60959.0,60953.0,0.3608]
[1724127349437,0.23076,60959.0,60953.0,0.442784]
[1724127349643,0.22976,60959.0,60954.0,0.081983]
[1724127349842,0.001,60958.0,60954.0,0.081983]
[1724127351141,0.081981,60957.0,60953.0,0.3608]
[1724127351738,0.23076,60959.0,60953.0,0.442785]
[1724127352142,0.001,60957.0,60953.0,0.442785]
[1724127352942,0.22976,60959.0,60953.0,0.442785]
[1724127353160,0.081979,60958.0,60953.0,0.442785]
[1724127353452,0.081984,60955.0,60953.0,0.3608]
[1724127353651,0.08199,60950.0,60949.0,0.00024615]
[1724127354151,3.85199,60950.0,60949.0,0.00024615]
[1724127354547,3.77,60950.0,60949.0,0.08223715]
[1724127355652,3.771,60950.0,60949.0,0.08223715]
[1724127356247,3.77,60950.0,60949.0,0.08223715]
[1724127356447,3.771,60950.0,60949.0,0.08223715]
[1724127358748,3.852989,60950.0,60949.0,0.00024615]
[1724127361361,0.081992,60948.0,60947.0,0.3608]
[1724127361655,0.251992,60948.0,60947.0,0.3608]
[1724127363150,0.252992,60948.0,60947.0,0.3608]
[1724127363365,0.001,60948.0,60947.0,0.3608]
[1724127363662,0.082992,60948.0,60947.0,0.3608]
[1724127363961,0.001,60948.0,60947.0,0.3608]
[1724127364170,0.001,60948.0,60947.0,0.442794]
[1724127364660,0.00088,60950.0,60947.0,1.25304]
[1724127364850,0.22976,60959.0,60947.0,0.85304]
[1724127365055,3.77,60958.0,60956.0,0.3608]
[1724127366065,3.77,60958.0,60954.0,0.081984]
[1724127366259,3.77,60958.0,60956.0,0.3608]
[1724127366652,0.00024615,60962.0,60956.0,0.3608]
[1724127366856,0.06526448,60970.0,60961.0,0.081975]
[1724127367162,0.09805807,60981.0,60971.0,0.081961]
[1724127367163,0.081949,60980.0,60971.0,0.081961]
[1724127367355,0.06526448,60984.0,60979.0,0.44275]
[1724127367553,0.1044,60986.0,60979.0,0.3608]
[1724127367863,0.186341,60986.0,60979.0,0.3608]
[1724127368062,0.1044,60986.0,60979.0,0.3608]
[1724127369066,0.1184,60986.0,60979.0,0.3608]
[1724127370750,0.081948,60981.0,60976.0,0.00024615]
[1724127371964,0.06526448,60983.0,60976.0,0.00024615]
[1724127372160,0.011,60981.0,60976.0,0.00024615]
[1724127372353,0.011,60981.0,60979.0,0.3608]
[1724127372559,0.011,60981.0,60980.0,0.081949]
[1724127372753,0.011,60981.0,60980.0,0.573909]
[1724127373162,3.77,60988.0,60983.0,0.081945]
[1724127373453,3.77,60988.0,60984.0,0.3608]
[1724127374160,0.00024615,60989.0,60984.0,0.3608]
[1724127374161,0.00024615,60989.0,60988.0,0.081938]
[1724127375361,0.00905555,60998.0,60997.0,0.081926]
[1724127375556,0.1057,61002.0,61001.0,0.081921]
[1724127375756,0.17953727,61002.0,61001.0,0.442721]
[1724127375958,0.11442726,61002.0,61001.0,0.442721]
[1724127376161,0.1057,61002.0,61001.0,0.3608]
[1724127376763,0.06511001,61003.0,61001.0,0.3608]
[1724127376968,0.00024593,61008.0,61006.0,0.081914]
[1724127377163,0.00024593,61008.0,61007.0,0.3608]
[1724127377876,0.00024593,61008.0,61007.0,1.25256]
[1724127378173,0.06511001,61021.0,61007.0,1.73361321]
[1724127378360,0.06511001,61025.0,61020.0,0.3608]
[1724127378561,0.2296,61037.0,61020.0,0.3608]
[1724127378562,0.08112996,61040.0,61023.0,0.3608]
[1724127378777,0.09734043,61076.0,61039.0,1.0051]
[1724127378962,0.2835,61065.0,61062.0,0.3608]
[1724127379162,0.3608,61063.0,61039.0,0.3608]
[1724127379370,0.081855,61051.0,61039.0,0.3608]
[1724127379569,0.2835,61054.0,61039.0,0.3626]
[1724127379570,0.1104,61050.0,61039.0,0.3626]
[1724127379764,0.1104,61050.0,61040.0,0.19755321]
[1724127380162,0.081857,61049.0,61040.0,0.19755321]
[1724127380365,0.08186,61047.0,61040.0,0.19755321]
[1724127380767,0.1104,61050.0,61039.0,0.36104572]
[1724127380971,0.6443,61040.0,61011.0,0.3608]
[1724127381173,0.081897,61019.0,61011.0,0.3608]
[1724127381368,0.3608,61027.0,61011.0,0.3608]
[1724127381576,0.2835,61028.0,61021.0,0.3608]
[1724127381775,0.2835,61028.0,61016.0,0.3608]
[1724127381776,0.3608,61036.0,61016.0,0.3608]
[1724127381977,0.081877,61035.0,61023.0,0.3608]
[1724127382275,0.00024572,61032.0,61030.0,0.3608]
[1724127382677,0.08071913,61031.0,61030.0,0.3608]
[1724127382871,0.00024572,61032.0,61030.0,0.3608]
[1724127383370,0.08070681,61031.0,61023.0,0.3608]
[1724127383565,0.08192059,61032.0,61023.0,0.3608]
[1724127384074,0.08067487,61031.0,61023.0,0.3608]
[1724127384268,0.08067487,61031.0,61028.0,0.3608]
[1724127384471,0.08067487,61029.0,61020.0,0.00024572]
[1724127384671,0.16254898,61027.0,61020.0,0.00024572]
[1724127384869,0.08066298,61026.0,61020.0,0.00024572]
[1724127385073,0.08066298,61025.0,61020.0,0.00024572]
[1724127385378,0.08066298,61026.0,61015.0,0.3608]
[1724127385575,0.354,61016.0,60995.0,0.3608]
[1724127385780,3.77,61001.0,60995.0,0.3608]
[1724127386080,4.20468269,61001.0,60988.0,0.3608]
[1724127386376,4.20468269,61001.0,60976.0,0.3608]
[1724127386377,0.7148,60989.0,60976.0,0.3608]
[1724127386576,0.354,60978.0,60976.0,0.3608]
[1724127386881,0.0001427,60977.0,60976.0,0.3608]
[1724127387582,3.7701427,60977.0,60976.0,0.3608]
[1724127387770,0.08196,60972.0,60971.0,0.00024593]
[1724127388476,3.85196,60972.0,60971.0,0.00024593]
[1724127389083,4.21276,60972.0,60971.0,0.00024593]
[1724127389677,4.21276,60972.0,60933.0,0.3608]
[1724127389678,0.4922227,60971.0,60933.0,0.3608]
[1724127389876,1.0756,60950.0,60929.0,0.082017]
[1724127390074,0.3608,60944.0,60929.0,0.082017]
[1724127390476,4.1308,60944.0,60929.0,0.082017]
[1724127390690,4.1308,60944.0,60932.0,0.3608]
[1724127390875,4.1308,60944.0,60927.0,0.3608]
[1724127390876,4.1308,60944.0,60937.0,0.00024613]
[1724127392674,4.1318,60944.0,60937.0,0.00024613]
[1724127392870,4.2377,60944.0,60937.0,0.00024613]
[1724127393278,0.082006,60938.0,60937.0,0.00024613]
[1724127393470,0.082006,60938.0,60920.0,0.3608]
[1724127393471,0.3608,60938.0,60920.0,0.3608]
[1724127393677,0.3608,60938.0,60915.0,0.3608]
[1724127393678,0.3608,60927.0,60915.0,0.3608]
[1724127394282,0.00012899,60926.0,60915.0,0.3608]
[1724127394491,0.082034,60917.0,60914.0,0.00024613]
[1724127394782,0.3608,60915.0,60914.0,0.00024613]
[1724127395381,4.1308,60915.0,60914.0,0.00024613]
[1724127396178,4.13096024,60915.0,60914.0,0.00024613]
[1724127397182,4.13196024,60915.0,60914.0,0.00024613]
[1724127397481,5.37844024,60915.0,60914.0,0.00024613]
[1724127397882,5.54844024,60915.0,60914.0,0.00024613]
[1724127398082,5.54844024,60915.0,60891.0,0.3608]
[1724127398278,0.3608,60902.0,60891.0,0.3608]
[1724127398479,0.082058,60900.0,60891.0,0.3608]
[1724127398684,0.082058,60900.0,60888.0,0.00017675]
[1724127398880,0.3608,60897.0,60888.0,0.00017675]
[1724127399188,0.31974549,60897.0,60888.0,0.00017675]
[1724127399983,0.082064,60895.0,60888.0,0.00017675]
[1724127401088,0.3608,60891.0,60888.0,0.00017675]
[1724127401287,0.08221353,60890.0,60888.0,0.00017675]
[1724127402189,0.3608,60889.0,60888.0,0.00017675]
[1724127402593,0.3608,60889.0,60861.0,0.3608]
[1724127402594,0.49272,60888.0,60861.0,0.3608]
[1724127402782,0.3608,60869.0,60861.0,0.3608]
[1724127403087,3.77,60868.0,60852.0,0.442922]
[1724127403292,3.77,60868.0,60852.0,0.3608]
[1724127403490,0.082114,60858.0,60847.0,0.458]
[1724127403790,0.082114,60858.0,60842.0,0.082135]
[1724127403791,0.3608,60852.0,60844.0,0.3608]
[1724127404883,0.082124,60851.0,60834.0,0.3608]
[1724127405082,0.3608,60852.0,60836.0,0.082142]
[1724127405289,0.00024654,60849.0,60846.0,0.3608]
[1724127405709,0.001,60852.0,60850.0,0.082124]
[1724127405886,0.001,60852.0,60851.0,0.3608]
[1724127406586,0.22988,60856.0,60851.0,0.3608]
[1724127406988,0.22988,60856.0,60851.0,0.442923]
[1724127407188,0.00017678,60857.0,60852.0,0.493]
[1724127407490,0.082083,60881.0,60856.0,0.7148]
[1724127407684,0.082085,60880.0,60872.0,0.3608]
[1724127407887,0.3608,60882.0,60869.0,0.3608]
[1724127407888,0.442883,60882.0,60869.0,0.3608]
[1724127408081,0.3608,60882.0,60869.0,0.3608]
[1724127408384,0.3608,60888.0,60879.0,0.3608]
[1724127408385,0.00013832,60881.0,60879.0,0.3608]
[1724127408692,0.00013832,60881.0,60869.0,0.3608]
[1724127408693,0.00113832,60881.0,60876.0,0.3608]
[1724127409193,0.00113832,60881.0,60869.0,0.36104654]
[1724127409194,0.3608,60877.0,60869.0,0.36104654]
[1724127409496,0.082085,60880.0,60869.0,0.36104654]
[1724127409787,0.36193832,60881.0,60869.0,0.36104654]
[1724127410293,0.36193832,60881.0,60879.0,0.002]
[1724127410982,0.36093832,60881.0,60869.0,0.44314454]
[1724127411189,0.36193832,60881.0,60869.0,0.44514454]
[1724127411487,0.36193832,60881.0,60869.0,0.36304654]
[1724127411789,0.36193832,60881.0,60869.0,0.36104654]
[1724127411790,0.36093832,60881.0,60869.0,0.36104654]
[1724127411990,0.36193832,60881.0,60879.0,0.002]
[1724127412290,0.00113832,60881.0,60879.0,0.002]
[1724127412887,0.00113832,60881.0,60880.0,0.3608]
[1724127413400,0.00013832,60881.0,60880.0,0.3608]
[1724127413587,0.00113832,60881.0,60874.0,0.3608]
[1724127414386,0.08322132,60881.0,60880.0,0.001]
[1724127414583,0.44402132,60881.0,60880.0,0.00075346]
[1724127415191,0.08222132,60881.0,60869.0,0.00024654]
[1724127415392,0.08322132,60881.0,60874.0,0.001]
[1724127416085,0.082091,60875.0,60874.0,0.001]
[1724127416690,0.08221242,60875.0,60874.0,0.001]
[1724127416885,1.11501242,60875.0,60874.0,0.001]
[1724127417291,0.71501242,60875.0,60874.0,0.001]
[1724127417493,0.00012142,60875.0,60874.0,0.082092]
[1724127419286,0.00112142,60875.0,60874.0,0.096092]
[1724127420296,0.176164,60895.0,60875.0,0.4928]
[1724127420297,0.0941,60895.0,60875.0,0.4928]
[1724127420498,0.0941,60895.0,60886.0,0.3608]
[1724127420692,0.3608,60897.0,60891.0,0.3608]
[1724127420898,0.3608,60902.0,60896.0,0.082063]
[1724127421201,0.0932,60909.0,60896.0,0.3608]
[1724127421402,0.0932,60909.0,60901.0,0.3608]
[1724127421602,0.00013851,60908.0,60901.0,0.3608]
[1724127421797,0.00013851,60908.0,60897.0,0.04813616]
[1724127421798,0.08218551,60908.0,60897.0,0.04813616]
[1724127422000,0.082049,60906.0,60896.0,0.00024633]
[1724127422201,0.3608,60907.0,60896.0,0.00024633]
[1724127422998,0.3608,60901.0,60896.0,0.00024633]
[1724127423897,0.00012555,60900.0,60896.0,0.00024633]
[1724127424199,0.22992,60899.0,60882.0,0.04813616]
[1724127424394,0.442874,60888.0,60883.0,0.04813616]
[1724127424595,0.00011914,60887.0,60881.0,0.04813616]
[1724127424891,0.082077,60886.0,60876.0,0.04813616]
[1724127425492,0.082077,60886.0,60877.0,0.04813616]
[1724127425701,0.10326547,60887.0,60878.0,0.04813616]
[1724127426098,0.10326547,60887.0,60885.0,0.082077]
[1724127426099,0.00036547,60887.0,60885.0,0.082077]
[1724127426403,0.00036547,60887.0,60886.0,0.04813616]
[1724127426706,0.00036547,60887.0,60885.0,0.04813616]
[1724127426898,0.00036547,60887.0,60880.0,0.42517805]
[1724127426899,0.00036547,60887.0,60884.0,0.04813616]
[1724127427101,0.00136547,60887.0,60884.0,0.04813616]
[1724127427306,3.77,60886.0,60884.0,0.04813616]
[1724127427898,3.77,60886.0,60885.0,0.011]
[1724127428596,3.77,60886.0,60885.0,0.07537805]
[1724127428792,3.77,60886.0,60885.0,0.011]
[1724127428999,3.77,60886.0,60885.0,0.07553206]
[1724127429295,3.77,60886.0,60885.0,0.011]
[1724127429495,3.77,60886.0,60885.0,0.07554275]
[1724127429702,3.77,60886.0,60885.0,0.011]
[1724127430203,3.852076,60886.0,60885.0,0.011]
[1724127430416,3.853076,60886.0,60885.0,0.04842236]
[1724127430710,3.853076,60886.0,60884.0,0.006]
[1724127430711,3.771,60886.0,60884.0,0.006]
[1724127430906,3.771,60886.0,60885.0,0.06454275]
[1724127431206,3.77,60886.0,60885.0,0.082078]
[1724127431401,3.771,60886.0,60885.0,0.089078]
[1724127431709,0.3608,60893.0,60885.0,0.007]
[1724127431906,0.3608,60893.0,60888.0,0.06453873]
[1724127432103,0.3608,60893.0,60892.0,0.04840246]
[1724127432309,4.1308,60893.0,60889.0,0.06453873]
[1724127432695,4.1308,60893.0,60892.0,0.082068]
[1724127433005,4.13087102,60893.0,60892.0,0.082068]
[1724127433314,4.13087102,60893.0,60889.0,0.06453873]
[1724127433510,4.13087102,60893.0,60892.0,0.04840242]
[1724127433811,4.29187102,60893.0,60890.0,0.04840842]
[1724127434310,4.29187102,60893.0,60885.0,0.07253873]
[1724127434311,0.082071,60890.0,60889.0,0.04840842]
[1724127434499,0.082073,60889.0,60886.0,0.06453873]
[1724127434695,4.13171102,60893.0,60879.0,0.3608]
[1724127434696,4.13171102,60893.0,60884.0,0.06453873]
[1724127434897,4.13171102,60893.0,60887.0,0.04844569]
[1724127434898,0.082073,60889.0,60887.0,0.04844569]
[1724127435213,4.29087102,60893.0,60885.0,0.06453873]
[1724127435214,0.08207,60891.0,60885.0,0.06453873]
[1724127435508,0.082071,60890.0,60889.0,0.04844756]
[1724127435729,0.442876,60886.0,60882.0,0.06453873]
[1724127435900,0.442876,60886.0,60881.0,0.06453873]
[1724127435901,0.082082,60882.0,60881.0,0.06453873]
[1724127436102,0.082082,60882.0,60880.0,0.06453873]
[1724127436103,0.082083,60881.0,60880.0,0.06453873]
[1724127436309,0.442883,60881.0,60880.0,0.06453873]
[1724127436506,0.442883,60881.0,60875.0,0.08075234]
[1724127436507,0.442883,60881.0,60876.0,0.08050601]
[1724127436706,0.4592,60881.0,60876.0,0.08050601]
[1724127436906,0.082089,60877.0,60875.0,0.08075234]
[1724127437108,0.4592,60881.0,60875.0,0.08075234]
[1724127437308,0.4592,60881.0,60876.0,0.08050601]
[1724127437506,0.082089,60877.0,60876.0,0.08050601]
[1724127437706,0.082089,60877.0,60876.0,0.20559449]
[1724127438012,0.082089,60877.0,60875.0,0.08075234]
[1724127438208,0.082089,60877.0,60876.0,0.008]
[1724127439222,0.082089,60877.0,60875.0,0.00024633]
[1724127439223,0.08216102,60876.0,60875.0,0.06481741]
[1724127439415,0.08216102,60876.0,60875.0,0.04862454]
[1724127439416,7.102e-05,60876.0,60875.0,0.04862454]
[1724127439609,0.08216102,60876.0,60875.0,0.04862683]
[1724127439908,0.082091,60875.0,60872.0,0.0486282]
[1724127440105,0.082099,60869.0,60868.0,0.00012132]
[1724127440304,0.3608,60873.0,60867.0,0.00024633]
[1724127440305,0.0821,60868.0,60867.0,0.00024633]
[1724127440509,0.0821,60868.0,60859.0,0.04714653]
[1724127440510,0.082111,60860.0,60859.0,0.04714653]
[1724127440715,0.082118,60855.0,60852.0,0.0648445]
[1724127440912,0.082118,60855.0,60851.0,0.0648445]
[1724127441211,3.852119,60854.0,60847.0,0.0648445]
[1724127441417,3.852119,60854.0,60845.0,0.442931]
[1724127441418,0.00015223,60853.0,60846.0,0.0648445]
[1724127441816,0.082123,60852.0,60846.0,0.0648445]
[1724127442019,0.08227323,60853.0,60845.0,0.4256445]
[1724127442216,0.08227323,60853.0,60845.0,0.3608]
[1724127443720,0.082123,60851.0,60845.0,0.3608]
[1724127444318,0.00015223,60853.0,60845.0,0.3608]
[1724127444525,0.00015223,60853.0,60844.0,0.00024633]
[1724127444526,0.3608,60852.0,60844.0,0.00024633]
[1724127444710,0.082129,60847.0,60844.0,0.00024633]
[1724127445831,0.08213,60846.0,60844.0,0.00024633]
[1724127446416,0.08213,60846.0,60844.0,0.00124633]
[1724127446817,0.08214,60839.0,60834.0,0.3608]
[1724127447018,0.0001824,60838.0,60834.0,0.3608]
[1724127447213,3.77,60837.0,60834.0,0.3608]
[1724127447618,3.77,60837.0,60829.0,0.082152]
[1724127447921,3.77,60837.0,60827.0,0.3608]
[1724127448231,3.77,60837.0,60823.0,0.0959]
[1724127448232,0.082148,60833.0,60825.0,0.3608]
[1724127448414,3.77,60837.0,60823.0,0.0959]
[1724127448415,0.3608,60832.0,60823.0,0.178061]
[1724127449114,0.3608,60832.0,60820.0,0.3608]
[1724127449317,0.3608,60826.0,60814.0,0.442973]
[1724127449526,0.00016191,60825.0,60817.0,0.082169]
[1724127449721,0.08216,60824.0,60817.0,0.082169]
[1724127450313,0.00016191,60825.0,60817.0,0.082169]
[1724127450913,0.001,60824.0,60817.0,0.082169]
[1724127451428,0.082163,60822.0,60817.0,0.082169]
[1724127451624,0.001,60824.0,60818.0,0.08232613]
[1724127452523,0.001,60824.0,60819.0,0.082167]
[1724127452731,3.77016191,60825.0,60819.0,0.49324]
[1724127453026,0.00116191,60825.0,60824.0,0.08216]
[1724127453421,0.00116191,60825.0,60824.0,0.9754]
[1724127453621,0.00016191,60825.0,60824.0,0.9754]
[1724127454130,0.23012,60841.0,60825.0,0.082158]
[1724127454424,3.77,60847.0,60839.0,0.082139]
[1724127455127,3.77,60847.0,60830.0,0.3608]
[1724127455427,0.3608,60849.0,60838.0,0.3608]
[1724127455428,0.00024654,60849.0,60838.0,0.3608]
[1724127455628,0.00024654,60849.0,60843.0,0.082134]
[1724127456026,0.00024654,60849.0,60839.0,0.355]
[1724127456222,0.00024654,60849.0,60843.0,0.3608]
[1724127456728,0.00124654,60849.0,60847.0,0.082128]
[1724127456928,0.00124654,60849.0,60843.0,0.3608]
[1724127457224,0.00124654,60849.0,60845.0,0.082131]
[1724127457427,0.00124654,60849.0,60846.0,0.082129]
[1724127458226,0.00124654,60849.0,60841.0,0.082136]
[1724127458630,0.00124654,60849.0,60838.0,0.3608]
[1724127458631,0.3608,60847.0,60838.0,0.3608]
[1724127459220,0.082136,60842.0,60838.0,0.3608]
[1724127459827,0.3608,60841.0,60837.0,0.00024654]
[1724127460330,0.23032654,60849.0,60837.0,0.00024654]
[1724127460331,0.00024654,60849.0,60847.0,0.082129]
[1724127460527,0.16354206,60865.0,60847.0,0.082129]
[1724127460528,0.082089,60877.0,60849.0,0.082126]
[1724127460724,0.082079,60884.0,60870.0,0.3608]
[1724127460924,0.1953,60887.0,60875.0,0.3608]
[1724127461325,0.1953,60887.0,60877.0,0.082087]
[1724127461533,0.19554654,60887.0,60877.0,0.082087]
[1724127461924,3.77,60886.0,60877.0,0.082087]
[1724127462630,0.19554654,60887.0,60875.0,0.36104654]
[1724127462830,0.19554654,60887.0,60880.0,0.082084]
[1724127463021,3.96554654,60887.0,60880.0,0.082084]
[1724127463221,0.001,60886.0,60880.0,0.082084]
[1724127463420,0.001,60886.0,60880.0,0.3608]
[1724127463625,3.771,60886.0,60880.0,0.3608]
[1724127464234,0.001,60886.0,60885.0,0.3608]
[1724127465122,0.00024654,60887.0,60886.0,0.082076]
[1724127466626,0.00024654,60887.0,60885.0,0.3608]
[1724127467027,0.00424654,60887.0,60885.0,0.3608]
[1724127468331,0.00024654,60887.0,60885.0,0.3608]
[1724127468527,0.00324654,60887.0,60885.0,0.3608]
[1724127470338,0.082076,60886.0,60885.0,0.3608]
[1724127470535,0.182276,60886.0,60885.0,0.3608]
[1724127470745,0.674996,60886.0,60885.0,0.3608]
[1724127470939,1.50372,60886.0,60862.0,0.3608]
[1724127471131,1.50372,60886.0,60852.0,0.3608]
[1724127471132,0.3608,60870.0,60852.0,0.3608]
[1724127471333,0.3608,60870.0,60859.0,0.082111]
[1724127471829,0.3608,60870.0,60860.0,0.082111]
[1724127472026,3.77,60869.0,60853.0,0.08212]
[1724127472230,3.77,60869.0,60852.0,0.3608]
[1724127472231,0.00024654,60871.0,60863.0,0.3608]
[1724127472535,0.00024654,60871.0,60870.0,0.082098]